Cogmind - Beta 14 @@@ ROGUE MODE // 2024.09.02 @ 16:09:34 Player: albenzo Result: Destroyed by D-83 Annihilator with Micro-nuke Launcher Performance ------------- Evolutions (8) 4000 Regions Visited (35) 7000 Robots Destroyed (203) 1015 Value Destroyed (7452) 7452 Prototype IDs (70) 1400 Alien Tech Used (3) 600 Bonus (2030) 2030 TOTAL SCORE: 23497 Bonus ------- High Alert Combat Kills 378 Follower Combat Kills 328 Met Data Miner 300 Destroyed Z-Imprinter 1000 Met Zhirov 300 Met Warlord at Base 500 MAIN.C Attacked Warlord 500 Friendly Fire -1276 Cogmind --------- Core Integrity 0/1450 Matter 295/300 Energy 100/100 System Corruption 0% Temperature Cool (1) Movement Flying (30) Location -2/Research Parts ------- > --- POWER (2) -------- (None) > --- PROPULSION (4) --- Improved Diametric Drive > --- UTILITY (15) ----- Advanced Signal Interpreter Improved Melee Analysis Suite Advanced Melee Analysis Suite Advanced Target Analyzer Advanced Target Analyzer Advanced Target Analyzer Experimental Target Analyzer > --- WEAPON (3) ------- Nanosword > --- INVENTORY (5) ---- Light Antimatter Reactor Hacking Drone Bay Improved Remote Datajack Enhanced Force Lance Enhanced Force Lance Peak State ------------ > --- POWER ------------ Light Ion Engine Light Antimatter Reactor > --- PROPULSION ------- Impulse Thruster Impulse Thruster Impulse Thruster Array > --- UTILITY ---------- Power Amplifier Medium Storage Unit Advanced Weight Redist. System Advanced Sensor Array Advanced Signal Interpreter Improved Melee Analysis Suite Advanced Melee Analysis Suite Advanced Target Analyzer Advanced Target Analyzer Advanced Target Analyzer Experimental Target Analyzer Experimental Target Analyzer Armor Integrity Analyzer Experimental Hardlight Generator Advanced Corruption Screen > --- WEAPON ----------- Nanosword > --- INVENTORY -------- Light Antimatter Reactor Impulse Thruster Hardlight Generator Hacking Drone Bay Long-range Proton Cannon Fusion Bomb Launcher Improved Remote Datajack Enhanced Force Lance Enhanced Force Lance [Rating: 142] Favorites ----------- Power Micro Fission Core Engine Cooled Ion Engine Power Core Micro Fission Core Reactor Fusion Reactor Propulsion Medium Treads Treads Medium Treads Leg Assembled Alloy Leg Wheel Compact Wheel Hover Unit Gravmag Array Flight Unit Impulse Thruster Utility Large Storage Unit Device Experimental Sensor Array Storage Large Storage Unit Processor Advanced Melee Analysis Suite Hackware Makeshift Hacking Suite Protection Improved Medium Armor Plating Weapon Lance Energy Gun Heavy Laser Energy Cannon Assembled Focal Cannon Ballistic Gun Assault Rifle Launcher Rocket Array Special Weapon Plasma Cutter Impact Weapon Hammer Slashing Weapon Makeshift Axe Piercing Weapon Lance Build | -11 -10 -10 -9 -9 -9 -8 -8 -7 -7 -7 -7 -7 -7 -7 -6 -6 -6 -6 -6 -6 -6 -5 -5 -5 -5 -5 -4 -4 -4 -4 -4 -3 -3 -3 -2 ------- Run | Yrd Mat Min Mat Min Exi Min Mat Fac Was Fac Low Low Zio Dee Pro Fac Was Fac Low Low Dat Pro Fac Upp Upp Zhi Pro Fac Upp Upp War Pro Res Tes Res Slots Evolved 16 | . . . 2 . . . 2 2 . . . . . . . 2 . . . . . . 2 . . . . 2 . . . . 2 . 2 Power 1 | . . . . . . . . . . . . . . . . 1 . . . . . . . . . . . . . . . . . . . Propulsion 1 | . . . . . . . 1 . . . . . . . . . . . . . . . . . . . . . . . . . . . . Utility 13 | . . . 2 . . . 1 1 . . . . . . . 1 . . . . . . 2 . . . . 2 . . . . 2 . 2 Weapon 1 | . . . . . . . . 1 . . . . . . . . . . . . . . . . . . . . . . . . . . . Parts Attached 365 | 1 12 7 38 1 1 3 23 19 5 39 . 5 17 37 . 2 3 12 11 6 3 1 27 1 2 7 3 5 2 2 12 3 27 13 15 Power 42 | . 2 2 6 . . . . . . 3 . . . 5 . . . . 1 . . . 5 . . 2 1 . . . 3 1 7 . 4 Engine 16 | . 2 2 6 . . . . . . 3 . . . . . . . . 1 . . . 1 . . . . . . . . . . . 1 Core 7 | . . . . . . . . . . . . . . . . . . . . . . . 4 . . 1 1 . . . 1 . . . . Reactor 19 | . . . . . . . . . . . . . . 5 . . . . . . . . . . . 1 . . . . 2 1 7 . 3 Propulsion 54 | . 3 1 3 . . . 5 2 1 6 . . . 3 . . 2 7 1 2 . . 2 . 2 . . . . . 2 1 4 4 3 Treads 22 | . 2 1 3 . . . 5 2 1 6 . . . 2 . . . . . . . . . . . . . . . . . . . . . Leg 12 | . 1 . . . . . . . . . . . . 1 . . 2 3 1 2 . . . . . . . . . . . . . 2 . Wheel 5 | . . . . . . . . . . . . . . . . . . 4 . . . . . . . . . . . . . . 1 . . Hover 9 | . . . . . . . . . . . . . . . . . . . . . . . 2 . 2 . . . . . 2 1 2 . . Flight 6 | . . . . . . . . . . . . . . . . . . . . . . . . . . . . . . . . . 1 2 3 Utility 194 | 1 4 . 25 1 1 3 14 10 2 18 . 4 12 14 . 2 1 4 6 3 . 1 13 1 . 5 2 5 2 2 7 . 15 8 8 Device 84 | 1 . . 12 . . 2 5 5 . 12 . 2 2 6 . 2 1 1 2 1 . . 6 . . . . 2 1 1 4 . 7 5 4 Storage 13 | . 4 . . . 1 . . . . . . . . 2 . . . . 2 . . . 1 . . 2 . . . . . . . . 1 Processor 36 | . . . 1 . . . 2 1 . . . . 8 . . . . 1 1 . . . 2 1 . . 1 2 1 1 3 . 5 3 3 Hackware 4 | . . . . . . . . . . . . . . . . . . . . . . . 1 . . . 1 1 . . . . 1 . . Protection 57 | . . . 12 1 . 1 7 4 2 6 . 2 2 6 . . . 2 1 2 . 1 3 . . 3 . . . . . . 2 . . Artifact . | . . . . . . . . . . . . . . . . . . . . . . . . . . . . . . . . . . . . Weapon 75 | . 3 4 4 . . . 4 7 2 12 . 1 5 15 . . . 1 3 1 3 . 7 . . . . . . . . 1 1 1 . Energy Gun 44 | . . 2 4 . . . 3 4 . 10 . 1 2 11 . . . 1 2 . 2 . 2 . . . . . . . . . . . . Energy Cannon 7 | . . . . . . . . 2 . 1 . . . 2 . . . . . 1 1 . . . . . . . . . . . . . . Ballistic Gun 3 | . 2 1 . . . . . . . . . . . . . . . . . . . . . . . . . . . . . . . . . Ballistic Cannon . | . . . . . . . . . . . . . . . . . . . . . . . . . . . . . . . . . . . . Launcher 10 | . 1 1 . . . . 1 1 2 . . . 2 1 . . . . . . . . . . . . . . . . . . . 1 . Special Weapon 1 | . . . . . . . . . . . . . 1 . . . . . . . . . . . . . . . . . . . . . . Impact Weapon 2 | . . . . . . . . . . 1 . . . . . . . . . . . . 1 . . . . . . . . . . . . Slashing Weapon 4 | . . . . . . . . . . . . . . 1 . . . . 1 . . . 1 . . . . . . . . . 1 . . Piercing Weapon 4 | . . . . . . . . . . . . . . . . . . . . . . . 3 . . . . . . . . 1 . . . Special Melee Weapon . | . . . . . . . . . . . . . . . . . . . . . . . . . . . . . . . . . . . . Unidentified Prototypes 37 | . . . 3 . . . 1 1 . . . . 4 7 . . . 1 . 1 . . 1 . . 5 . . . . 4 . 2 6 1 Parts Lost 68 | . . 1 2 . . . 1 1 1 1 . 1 . 6 . 2 1 14 . . . 2 1 . 2 . . . . . . 2 13 4 13 Power 8 | . . . 2 . . . . . . . . . . 1 . . . 1 . . . . . . . . . . . . . . 1 1 2 Propulsion 16 | . . 1 . . . . . . 1 . . . . 1 . . . 2 . . . . . . 2 . . . . . . 1 3 1 4 Utility 33 | . . . . . . . 1 1 . . . . . 1 . 2 . 8 . . . 2 1 . . . . . . . . . 8 2 7 Weapon 11 | . . . . . . . . . . 1 . 1 . 3 . . 1 3 . . . . . . . . . . . . . 1 1 . . Highest Loss Streak 11 | . . 1 1 . . . 1 1 1 1 . 1 . 4 . 2 1 5 . . . 1 1 . 2 . . . . . . 2 7 2 11 To Critical Strikes 2 | . . . . . . . . . . . . . . . . . 1 . . . . . . . 1 . . . . . . . . . . Average Slot Usage (%) 92 | . 99 99 99 100 100 100 99 100 99 99 100 99 99 87 92 85 84 68 58 87 77 91 74 88 87 88 88 87 85 89 93 94 82 76 71 Engine 5 | . 14 14 10 11 11 11 9 7 7 7 7 7 7 . . . . . 3 6 6 6 2 . . . . . . . . . . . 2 Core 1 | . . . . . . . . . . . . . . . . . . . . . . . 8 11 11 8 5 5 5 5 5 3 . . . Reactor 1 | . . . . . . . . . . . . . . 6 7 6 6 5 . . . . . . . 2 5 5 5 5 5 6 7 2 2 Treads 13 | . 19 28 22 22 22 22 26 23 22 23 23 23 23 12 . . . . . . . . . . . . . . . . . . . . . Leg 4 | . 8 . . . . . . . . . . . . 6 23 20 17 12 20 20 25 25 . . . . . . . . . . . 2 . Hover 2 | . . . . . . . . . . . . . . . . . . . . . . . 10 11 10 11 11 10 10 10 13 15 10 . . Device 14 | . 14 14 17 14 11 20 13 17 . 13 15 13 14 11 23 27 26 20 5 14 18 18 15 16 16 16 10 8 14 15 10 10 12 6 12 Storage 8 | . 14 14 11 11 11 11 9 7 7 7 7 7 7 11 15 10 6 5 2 12 12 7 7 5 5 5 5 5 5 5 5 5 2 . 1 Processor 16 | . . . 11 11 11 11 18 18 23 23 23 23 21 12 . . . . 5 6 6 6 7 17 22 22 24 25 30 34 39 40 34 47 37 Protection 2 | . . . 4 7 11 1 4 1 15 . . 1 1 5 . . 6 6 . 6 6 9 2 5 5 5 5 5 . . . . . . . Energy Gun 10 | . . 5 21 22 22 22 18 15 1 21 23 22 22 7 . . . . 12 12 1 12 2 . . . . . . . . . . . . Energy Cannon 3 | . . . . . . . . 6 7 . . . . 8 23 20 20 12 . 5 . 6 . . . . . . . . . . . . . Ballistic Gun 2 | . 27 22 . . . . . . . . . . . . . . . . . . . . . . . . . . . . . . . . . Piercing Weapon 2 | . . . . . . . . . . . . . . . . . . . . . . . 8 16 16 16 16 15 15 15 15 14 10 . . Peak Build Rating 142 | 7 8 17 25 25 25 25 37 45 45 55 55 55 64 109 108 129 129 125 60 73 73 73 95 91 91 97 98 109 109 107 122 116 131 127 142 Average Rating 61 | 6 7 9 21 24 25 24 32 41 39 51 54 53 56 72 107 123 127 98 44 64 60 68 79 91 89 92 96 104 102 105 110 114 111 111 116 On Entrance 67 | 6 7 8 17 23 25 25 25 35 45 39 54 55 55 51 108 108 129 124 26 60 73 73 65 91 91 91 95 98 109 101 106 115 116 88 108 Naked Turns . | . . . . . . . . . . . . . . . . . . . . . . . . . . . . . . . . . . . . Heaviest Build 109 | 14 89 38 41 44 44 44 44 47 55 47 45 47 55 79 78 109 95 96 43 53 51 51 68 38 38 45 39 39 40 40 40 42 44 26 39 Greatest Support 84 | 20 40 40 46 46 46 46 69 63 63 78 78 78 78 84 84 84 84 60 52 72 72 72 72 49 49 49 49 40 40 40 46 46 46 32 39 Greatest Overweight (x) 4 | . 2 . 1 . . . . . 1 . . . . 1 . 1 1 4 . 1 . . 3 . . . . . . . 1 . 1 3 . Average Overweight (x) . | . . . . . . . . . . . . . . . . 1 1 . . . . . . . . . . . . . . . . . . Largest Inventory Capacity 25 | 8 25 15 15 15 15 15 15 15 15 15 15 15 15 15 15 15 5 5 10 10 10 10 10 10 10 10 10 10 10 10 10 10 10 5 10 Average Capacity 12 | 8 11 15 15 15 15 15 15 15 15 15 15 15 15 15 15 11 5 5 5 10 10 10 10 10 10 10 10 10 10 10 10 10 8 5 7 Most Carried 15 | 7 14 15 15 15 15 15 15 15 15 15 15 15 15 15 15 15 4 5 5 10 10 10 10 10 10 10 10 10 10 10 10 10 10 5 9 Average Carried 12 | 6 9 14 14 14 15 14 14 14 14 14 14 14 14 14 14 11 3 3 4 9 10 10 9 10 8 9 9 10 10 10 10 9 8 4 6 Final Capacity 15 | 8 15 15 15 15 15 15 15 15 15 15 15 15 15 15 15 5 5 5 10 10 10 10 10 10 10 10 10 10 10 10 10 10 5 5 5 Final Carried 15 | 7 14 15 15 15 15 15 15 15 14 14 15 15 15 15 15 4 3 5 5 10 10 10 10 10 10 10 10 10 10 10 10 8 5 5 5 Class Distribution -------------------- 28% | Mutant 22% | Gunner 16% | Gladiator 9% | Golem 9% | Scavenger-Mutant 7% | Scavenger-Gunner Dominant Class ---------------- Mutant | -10/Materials Mutant | -10/Mines Mutant | -9/Materials Mutant | -9/Mines Mutant | -9/Exiles Mutant | -8/Mines Mutant | -8/Materials Gunner | -7/Factory Scavenger-Gunner | -7/Waste Gunner | -7/Factory Gunner | -7/Lower Caves Gunner | -7/Lower Caves Gunner | -7/Zion Mutant | -7/Deep Caves Golem | -6/Proximity Caves Golem | -6/Factory Golem | -6/Waste Golem | -6/Factory Mutant | -6/Lower Caves Derelict-Gunner | -6/Lower Caves Derelict-Mutant | -6/Data Miner Derelict-Tank | -5/Proximity Caves Mutant | -5/Factory Gladiator | -5/Upper Caves Gladiator | -5/Upper Caves Gladiator | -5/Zhirov Gladiator | -4/Proximity Caves Hacker-Gladiator | -4/Factory Gladiator | -4/Upper Caves Gladiator | -4/Upper Caves Gladiator | -4/Warlord Gladiator | -3/Proximity Caves Gladiator | -3/Research Mutant | -3/Testing Scavenger-Scout | -2/Research Resources | -11 -10 -10 -9 -9 -9 -8 -8 -7 -7 -7 -7 -7 -7 -7 -6 -6 -6 -6 -6 -6 -6 -5 -5 -5 -5 -5 -4 -4 -4 -4 -4 -3 -3 -3 -2 ----------- Run | Yrd Mat Min Mat Min Exi Min Mat Fac Was Fac Low Low Zio Dee Pro Fac Was Fac Low Low Dat Pro Fac Upp Upp Zhi Pro Fac Upp Upp War Pro Res Tes Res Matter Collected 4954 | 222 245 192 370 10 . 40 234 183 331 551 66 137 62 558 . . 17 99 222 70 . 135 235 47 26 . 132 . 78 20 89 31 230 175 147 Remotely . | . . . . . . . . . . . . . . . . . . . . . . . . . . . . . . . . . . . . Salvage Created 10467 | 88 498 91 1088 83 . . 542 398 1202 727 . 293 . 559 546 127 232 148 14 . . 310 782 97 378 . 225 . . 338 . 128 1068 187 318 Parts 460 | 5 39 2 66 2 . . 30 19 3 39 . 6 . 23 28 3 6 13 2 . . 14 31 4 11 . 19 . . 7 . 7 56 7 18 Haulers Intercepted 17 | . 2 . 6 . . . . 1 . 2 . . . . . 1 . . . . . . 2 . . . . . . . . . 1 1 1 Recyclers Shooed 3 | 1 . . 1 . . . . . . . . . . . . . . . . . . . . . . . . . . . . . . . 1 Parts Field Recycled . | . . . . . . . . . . . . . . . . . . . . . . . . . . . . . . . . . . . . Retrieved Matter . | . . . . . . . . . . . . . . . . . . . . . . . . . . . . . . . . . . . . Parts Self-Destructed 98 | . . . . . . . . . . . . 3 . . 30 . . . 12 . . 17 . 1 10 . 12 . 3 4 . 6 . . . Prevented 5 | . . . . . . . . . . . . 4 . . . . . . 1 . . . . . . . . . . . . . . . . Kills | -11 -10 -10 -9 -9 -9 -8 -8 -7 -7 -7 -7 -7 -7 -7 -6 -6 -6 -6 -6 -6 -6 -5 -5 -5 -5 -5 -4 -4 -4 -4 -4 -3 -3 -3 -2 ------- Run | Yrd Mat Min Mat Min Exi Min Mat Fac Was Fac Low Low Zio Dee Pro Fac Was Fac Low Low Dat Pro Fac Upp Upp Zhi Pro Fac Upp Upp War Pro Res Tes Res Combat Hostiles Destroyed 154 | . 9 3 24 2 . . 15 7 6 9 . 6 . 8 11 1 1 4 1 . . 8 7 1 5 . 5 . . 1 . 2 17 1 . Melee 39 | . . . . . . . . . . . . . . . . . . . . . . . 7 1 5 . 5 . . 1 . 2 17 1 . Guns 72 | . 5 2 24 2 . . 10 6 . 7 . 6 . 2 . . . . 1 . . 7 . . . . . . . . . . . . . Cannons 22 | . . . . . . . . 1 . . . . . 3 11 1 1 4 . . . 1 . . . . . . . . . . . . . AOE 16 | . 4 1 . . . . 4 . 6 . . . . 1 . . . . . . . . . . . . . . . . . . . . . Classes Destroyed 21 | 2 4 1 2 1 . . 2 2 1 . . . . 4 1 . . . . . . . . 1 . . . . . . . . . . . Worker 6 | . 3 . . . . . . . . . . . . . . . . 1 . . . . . . . . . . . . . . . . 2 Builder 1 | . . . . . . . 1 . . . . . . . . . . . . . . . . . . . . . . . . . . . . Tunneler 2 | 1 . . . . . . . . . 1 . . . . . . . . . . . . . . . . . . . . . . . . . Hauler 17 | . 2 . 6 . . . . 1 . 2 . . . . . 1 . . . . . . 2 . . . . . . . . . 1 1 1 Recycler 5 | 1 . . . . . . . . . 1 . . . . . . . . . . . . 1 . . . . . . . . . 1 . 1 Operator 1 | . . . . . . . . . . . . . . . . . . . . . . . . . . . . . . . . . . 1 . Drone 3 | . . . . . . . . . . . . . . . 1 . . . . . . . . . . . 2 . . . . . . . . Watcher 14 | . 2 . 2 . . . . 2 . 4 . . . . . . . . . . . . 1 . . . . . . . . . 1 . 2 Swarmer 44 | . . . 11 . . . 4 . . . . 1 . . 2 . . 3 1 . . 5 1 . 5 . . . . . . . 11 . . Grunt 45 | . 9 2 9 1 . . 6 1 . 3 . 3 . . 1 . . . . . . 3 2 1 . . . . . . . . 3 1 . Brawler 3 | . . . . 1 . . . . . . . . . . 2 . . . . . . . . . . . . . . . . . . . . Duelist 3 | . . . . . . . 1 . . . . 1 . . 1 . . . . . . . . . . . . . . . . . . . . Sentry 18 | . . . 4 . . . 4 1 . 2 . 1 . . 2 . . 1 . . . . 2 . . . . . . 1 . . . . . Hunter 2 | . . . . . . . . 1 . 1 . . . . . . . . . . . . . . . . . . . . . . . . . Programmer 20 | . . . . . . . . 4 . 3 . . . . 2 1 . . . . . . 2 . . . 3 . . . . 2 3 . . Compactor 7 | . . . . . . . . . 6 . . . . . . . 1 . . . . . . . . . . . . . . . . . . Z-Technician 5 | . . . . . . . . . . . . . . 5 . . . . . . . . . . . . . . . . . . . . . Z-Light 5 | . . . . . . . . . . . . . . 5 . . . . . . . . . . . . . . . . . . . . . Samaritan 3 | . . . . . . . . . . . . . . . . . . . . . . . . 1 . . 1 . . 1 . . . . . Assembled 1 | . . 1 . . . . . . . . . . . . . . . . . . . . . . . . . . . . . . . . . Golem 2 | . . . . . . . . . . . . . . 2 . . . . . . . . . . . . . . . . . . . . . Thug 1 | . . . . . . . . . 1 . . . . . . . . . . . . . . . . . . . . . . . . . . Fireman 3 | . . . . . . . . . . . . . . 3 . . . . . . . . . . . . . . . . . . . . . Best Kill Streak 8 | 2 7 1 8 1 . . 4 3 4 3 . 3 . 5 5 1 1 5 1 . . 4 2 1 5 . 2 . . 1 . 2 7 2 2 Combat Bots Only 8 | . 4 1 8 1 . . 4 3 4 3 . 3 . 4 5 1 1 4 1 . . 4 2 1 5 . 2 . . 1 . 2 7 1 . Max Kills in Single Turn 8 | 1 5 1 1 1 . . 4 1 2 1 . 1 . 8 1 1 1 1 1 . . 1 1 1 1 . 1 . . 1 . 1 1 1 1 Gunslinging 1 | . . . . . . . 1 . . . . . . . . . . . . . . . . . . . . . . . . . . . . Exploded 4 | . 3 1 . . . . 4 . 2 . . . . 1 . . . . . . . . . . . . . . . . . . . . . Melee 1 | . . . . . . . . . . . . . . . . . . . . . . . 1 1 1 . 1 . . 1 . 1 1 1 . Uniques/NPCs Destroyed 1 | . . . . . . . . . . . . . . 1 . . . . . . . . . . . . . . . . . . . . . Z-Imprinter (-7/Deep Caves) Combat | -11 -10 -10 -9 -9 -9 -8 -8 -7 -7 -7 -7 -7 -7 -7 -6 -6 -6 -6 -6 -6 -6 -5 -5 -5 -5 -5 -4 -4 -4 -4 -4 -3 -3 -3 -2 -------- Run | Yrd Mat Min Mat Min Exi Min Mat Fac Was Fac Low Low Zio Dee Pro Fac Was Fac Low Low Dat Pro Fac Upp Upp Zhi Pro Fac Upp Upp War Pro Res Tes Res Hostile Shots Fired 1447 | . 28 17 82 6 . 2 55 56 . 83 . 43 . 41 35 44 22 366 20 . . 34 61 7 29 . 29 . 9 10 25 16 126 60 141 Missed 520 | . 3 2 24 1 . 2 19 21 . 26 . 15 . 7 17 15 1 124 6 . . 7 26 2 14 . 8 . 3 3 12 8 50 32 72 Damage Taken 16509 | . 338 221 689 56 . . 550 434 136 772 . 246 . 1726 230 324 784 2656 219 . . 475 846 94 249 . 414 . 76 146 223 165 1664 621 2155 Core 4036 | . 53 28 81 . . . 85 47 . 41 . 11 . 357 30 55 108 487 36 . . 12 177 36 14 . 104 . 38 46 58 53 386 234 1459 Absorbed by Shields . | . . . . . . . . . . . . . . . . . . . . . . . . . . . . . . . . . . . . Redirected to Shielding 207 | . . . . . . . . . . . . . . 135 . . . . . . . 9 . . . . 39 . . . . . 24 . . Ignored by Resistances 516 | . . . . . . . . . . . . . . . . . 147 369 . . . . . . . . . . . . . . . . . Regen/Repaired (Parts) 270 | . 92 . 65 . . . . . . . . . . . . . . . . . . . . . . . . . . . 113 . . . . Core Remaining (%) 63 | 100 . 67 . . . 79 84 . . . . . . . 30 . . . . . . 17 . . . . 66 . . . . 83 . 47 . Volleys Fired 363 | 3 39 15 62 7 . 1 35 20 8 40 . 14 . 28 16 11 14 15 6 1 . 25 . . . . . . . . . . . 3 . Largest 3 | 2 2 2 2 2 . 2 2 3 2 3 . 3 . 3 3 3 3 3 2 1 . 3 . . . . . . . . . . . 1 . Hottest 250 | 40 40 40 138 138 . 138 138 206 84 218 . 229 . 225 75 75 75 75 160 90 . 250 . . . . . . . . . . . 52 . Shots Fired 822 | 6 73 29 121 14 . 2 69 46 17 121 2 39 . 54 48 29 41 28 12 2 . 66 . . . . . . . . . . . 3 . Gun 606 | 6 68 28 121 14 . 2 68 39 . 120 2 39 . 39 . . . . 12 1 . 47 . . . . . . . . . . . . . Cannon 184 | . . . . . . . . 7 . 1 . . . 10 48 29 41 28 . 1 . 19 . . . . . . . . . . . . . Launcher 32 | . 5 1 . . . . 1 . 17 . . . . 5 . . . . . . . . . . . . . . . . . . . 3 . Special . | . . . . . . . . . . . . . . . . . . . . . . . . . . . . . . . . . . . . Kinetic 102 | 6 68 28 . . . . . . . . . . . . . . . . . . . . . . . . . . . . . . . . . Thermal 645 | . . . 121 14 . 2 68 38 . 120 2 31 . 23 48 29 41 28 12 2 . 66 . . . . . . . . . . . . . Explosive 32 | . 5 1 . . . . 1 . 17 . . . . 5 . . . . . . . . . . . . . . . . . . . 3 . Electromagnetic 43 | . . . . . . . . 8 . 1 . 8 . 26 . . . . . . . . . . . . . . . . . . . . . Robot Hit Streak 38 | 2 11 9 11 5 . 3 14 38 13 20 . 13 . 15 17 24 13 11 12 . . 5 . . . . . . . . . . . . . Robot Miss Streak 11 | 1 2 2 2 1 . . 3 2 2 5 1 2 . 6 2 1 2 2 7 . . 11 . . . . . . . . . . . . . Penetration Max . | . . . . . . . . . . . . . . . . . . . . . . . . . . . . . . . . . . . . Secondary Targets 6 | . . . 3 1 . . 2 . . . . . . . . . . . . . . . . . . . . . . . . . . . . Max Gunslinging Chain 1 | . . . 1 1 . . 1 . . . . . . . . . . . . . . . . . . . . . . . . . . . . Shots Hit Robots 680 | 3 52 21 85 9 . 2 52 37 15 86 . 29 . 35 27 23 34 23 3 . . 20 25 8 9 . 15 . . 7 1 6 40 5 8 Core Hits 336 | 3 36 9 39 3 . . 23 19 19 36 . 18 . 25 13 3 4 9 1 . . 10 15 2 9 . 6 . . 1 1 3 23 2 4 Critical Kills . | . . . . . . . . . . . . . . . . . . . . . . . . . . . . . . . . . . . . Critical Parts Destroyed 1 | . 1 . . . . . . . . . . . . . . . . . . . . . . . . . . . . . . . . . . Critical Strikes 48 | . 1 . 7 1 . . 6 1 . 3 . 1 . 4 . . . . 1 . . 2 3 1 1 . 3 . . 1 . 1 10 . 1 Burn 23 | . . . 7 1 . . 6 1 . 3 . . . 2 . . . . 1 . . 2 . . . . . . . . . . . . . Destroy 1 | . 1 . . . . . . . . . . . . . . . . . . . . . . . . . . . . . . . . . . Corrupt 3 | . . . . . . . . . . . . 1 . 2 . . . . . . . . . . . . . . . . . . . . . Sever 1 | . . . . . . . . . . . . . . . . . . . . . . . . . . . . . . . . . . . 1 Impale 20 | . . . . . . . . . . . . . . . . . . . . . . . 3 1 1 . 3 . . 1 . 1 10 . . Melee Attacks 243 | . . . . . . . . . . 2 . . . 1 . . . . . . . . 39 13 17 . 26 3 . 48 1 6 62 12 13 Impact 2 | . . . . . . . . . . 2 . . . . . . . . . . . . . . . . . . . . . . . . . Slashing 48 | . . . . . . . . . . . . . . 1 . . . . . . . . 22 . . . . . . . . . . 12 13 Piercing 193 | . . . . . . . . . . . . . . . . . . . . . . . 17 13 17 . 26 3 . 48 1 6 62 . . Sneak Attacks 16 | . . . . . . . . . . . . . . . . . . . . . . . 3 1 . . 2 . . 1 . . 3 1 5 Combat Hostiles 1 | . . . . . . . . . . . . . . . . . . . . . . . . . . . 1 . . . . . . . . Follow-up Attacks 20 | . . . . . . . . . . . . . . . . . . . . . . . 2 1 1 . 3 . . 2 . 2 9 . . Damage Inflicted 27198 | 32 831 235 1543 162 . 36 1256 814 3649 1850 . 667 . 3602 1319 1165 1561 1073 40 . . 469 1061 389 533 . 726 . . 576 58 274 2021 426 830 Guns 7519 | 32 516 215 1543 162 . 36 980 696 . 1804 . 630 . 525 . . . . 40 . . 340 . . . . . . . . . . . . . Cannons 5508 | . . . . . . . . 118 . 46 . . . 150 1319 1165 1561 1020 . . . 129 . . . . . . . . . . . . . Explosions 7224 | . 315 20 . . . . 276 . 3649 . . 37 . 2927 . . . . . . . . . . . . . . . . . . . . . Melee 6894 | . . . . . . . . . . . . . . . . . . . . . . . 1061 389 533 . 726 . . 576 58 274 2021 426 830 Ramming 53 | . . . . . . . . . . . . . . . . . . 53 . . . . . . . . . . . . . . . . . Kinetic 763 | 32 516 215 . . . . . . . . . . . . . . . . . . . . . . . . . . . . . . . . . Thermal 14071 | . . . 1543 162 . 36 980 671 . 1804 . 527 . 2774 1319 1165 1561 1020 40 . . 469 . . . . . . . . . . . . . Explosive 4731 | . 315 20 . . . . 276 . 3649 . . . . 471 . . . . . . . . . . . . . . . . . . . . . Electromagnetic 686 | . . . . . . . . 143 . 46 . 140 . 357 . . . . . . . . . . . . . . . . . . . . . Impact . | . . . . . . . . . . . . . . . . . . . . . . . . . . . . . . . . . . . . Slashing 1863 | . . . . . . . . . . . . . . . . . . . . . . . 607 . . . . . . . . . . 426 830 Piercing 5031 | . . . . . . . . . . . . . . . . . . . . . . . 454 389 533 . 726 . . 576 58 274 2021 . . Highest Corruption 33 | . . . . . . . . 5 13 13 9 9 9 . . 1 27 33 33 33 33 33 3 3 3 3 6 . . . 1 1 . . . Average Corruption 13 | . . . . . . . . 3 10 9 9 9 9 . . 1 15 28 33 33 33 33 1 3 3 3 4 . . . 1 1 . . . Corruption Purged 10 | . . . . . . . . 5 . 5 . . . . . . . . . . . . . . . . . . . . . . . . . Corruption Blocked 1 | . . . . . . . . . . . . . . . . . . . . . . . . . . . . . . . . . . . 1 Effects 337 | . . . . . . . . 11 7 76 14 40 3 . . . 20 41 45 16 6 34 1 4 4 2 12 . . . . 1 . . . Message Errors 70 | . . . . . . . . 2 2 18 3 7 2 . . . 5 7 10 . . 10 1 . . . 3 . . . . . . . . Matter Fused 80 | . . . . . . . . 2 1 19 6 14 . . . . 3 7 9 5 3 5 . 1 1 . 4 . . . . . . . . Heat Flow Errors 42 | . . . . . . . . 3 . 12 2 4 1 . . . 1 5 4 3 . 2 . 1 . 1 3 . . . . . . . . Energy Discharges 38 | . . . . . . . . . 1 9 . 7 . . . . 2 4 7 3 1 1 . 1 . 1 1 . . . . . . . . Parts Rejected 7 | . . . . . . . . . . 2 . . . . . . 3 2 . . . . . . . . . . . . . . . . . Parts Fused 3 | . . . . . . . . 1 . 2 . . . . . . . . . . . . . . . . . . . . . . . . . Data Loss (minor) 38 | . . . . . . . . 1 1 8 1 4 . . . . 1 3 6 3 . 5 . . 3 . 1 . . . . 1 . . . Data Loss (major) 12 | . . . . . . . . . 1 2 . 2 . . . . . 2 2 . 2 1 . . . . . . . . . . . . . Misfires 13 | . . . . . . . . . 1 2 2 1 . . . . 1 . 2 1 . 3 . . . . . . . . . . . . . Alerts 7 | . . . . . . . . . . 1 . . . . . . 1 1 2 1 . . . 1 . . . . . . . . . . . Misdirections 9 | . . . . . . . . . . . . . . . . . 1 7 1 . . . . . . . . . . . . . . . . Weapon Failures 18 | . . . . . . . . 2 . 1 . 1 . . . . 2 3 2 . . 7 . . . . . . . . . . . . . Overload Shots . | . . . . . . . . . . . . . . . . . . . . . . . . . . . . . . . . . . . . Overflow Damage 1506 | . . . . . . . . 24 8 . . . . 150 109 42 . . . . . 12 4 52 . . 103 . . 303 . . 425 79 195 Projectiles 187 | . . . . . . . . 24 . . . . . . 109 42 . . . . . 12 . . . . . . . . . . . . . Explosions 158 | . . . . . . . . . 8 . . . . 150 . . . . . . . . . . . . . . . . . . . . . Melee 1161 | . . . . . . . . . . . . . . . . . . . . . . . 4 52 . . 103 . . 303 . . 425 79 195 Knockbacks . | . . . . . . . . . . . . . . . . . . . . . . . . . . . . . . . . . . . . Impact . | . . . . . . . . . . . . . . . . . . . . . . . . . . . . . . . . . . . . Kinetic . | . . . . . . . . . . . . . . . . . . . . . . . . . . . . . . . . . . . . Secondary . | . . . . . . . . . . . . . . . . . . . . . . . . . . . . . . . . . . . . Self-Inflicted Damage 253 | . . . . . . . . . 140 . . . . 89 . . . 24 . . . . . . . . . . . . . . . . . Shots 6 | . . . . . . . . . 5 . . . . 1 . . . . . . . . . . . . . . . . . . . . . Rammed 11 | . . . . . . . . . . . . . . . . . . 11 . . . . . . . . . . . . . . . . . Targets Rammed 11 | . . . . . . . . . . . . . . . . . . 11 . . . . . . . . . . . . . . . . . Kicked . | . . . . . . . . . . . . . . . . . . . . . . . . . . . . . . . . . . . . Crushed . | . . . . . . . . . . . . . . . . . . . . . . . . . . . . . . . . . . . . Highest Temperature 422 | . 27 18 323 162 . 30 255 329 . 372 210 247 330 422 . . 101 189 137 238 . 287 12 97 13 228 166 . . . . . . . . Average Temperature 88 | . 10 9 108 70 . 20 79 75 . 83 98 77 162 139 . . 71 75 43 89 . 91 5 53 13 125 77 . . . . . . . . Received Heat Transfer 3116 | . 213 117 210 30 . . 261 24 . 186 . 99 . 255 45 . . 954 . . . 27 144 45 54 . 9 . 9 27 30 . 305 54 18 Effects 8 | . . . 5 . . . . . . . . . . 2 . . . . . . . 1 . . . . . . . . . . . . . Energy Bleed 4 | . . . 2 . . . . . . . . . . 1 . . . . . . . 1 . . . . . . . . . . . . . Interference 3 | . . . 3 . . . . . . . . . . . . . . . . . . . . . . . . . . . . . . . . Short Circuit 1 | . . . . . . . . . . . . . . 1 . . . . . . . . . . . . . . . . . . . . . Siege Activations . | . . . . . . . . . . . . . . . . . . . . . . . . . . . . . . . . . . . . Robots Corrupted 2 | . . . . . . . . . . . . . . 2 . . . . . . . . . . . . . . . . . . . . . Combat Hostiles 2 | . . . . . . . . . . . . . . 2 . . . . . . . . . . . . . . . . . . . . . Parts Fried 1 | . . . . . . . . . . . . 1 . . . . . . . . . . . . . . . . . . . . . . . Impact Corruptions . | . . . . . . . . . . . . . . . . . . . . . . . . . . . . . . . . . . . . Robots Melted 4 | . . . . . . . 1 . . 3 . . . . . . . . . . . . . . . . . . . . . . . . . Combat Hostiles 3 | . . . . . . . 1 . . 2 . . . . . . . . . . . . . . . . . . . . . . . . . Parts Melted 40 | . . . 11 . . . 5 1 . 17 . 1 . 1 . . . 1 . . . 3 . . . . . . . . . . . . . Heat Transferred 17467 | . . . 3700 407 . 74 2368 1271 . 3768 . 1096 . 766 700 600 875 600 161 . . 1081 . . . . . . . . . . . . . Parts Sabotaged . | . . . . . . . . . . . . . . . . . . . . . . . . . . . . . . . . . . . . Parts Stolen . | . . . . . . . . . . . . . . . . . . . . . . . . . . . . . . . . . . . . Parts Stripped . | . . . . . . . . . . . . . . . . . . . . . . . . . . . . . . . . . . . . Power Chain Reactions 3 | . . . . . . . . . . . . 1 . 2 . . . . . . . . . . . . . . . . . . . . . Alert | -11 -10 -10 -9 -9 -9 -8 -8 -7 -7 -7 -7 -7 -7 -7 -6 -6 -6 -6 -6 -6 -6 -5 -5 -5 -5 -5 -4 -4 -4 -4 -4 -3 -3 -3 -2 ------- Run | Yrd Mat Min Mat Min Exi Min Mat Fac Was Fac Low Low Zio Dee Pro Fac Was Fac Low Low Dat Pro Fac Upp Upp Zhi Pro Fac Upp Upp War Pro Res Tes Res Peak Influence 1258 | 10 154 88 506 212 . 51 330 197 95 172 . . . . . 548 195 256 . . . . 1258 . . . . 18 . . . . 595 509 718 Initial 950 | . 6 39 . 152 . . . 142 . 63 . . . . . 475 191 129 . . . . 950 . . . . . . . . . 40 334 217 Average 185 | 7 62 27 355 71 . 6 172 92 58 44 . . . . . 499 189 108 . . . . 1049 . . . . 7 . . . . 309 399 455 Maximum Alert Level 4 | . . . 2 1 . . 1 . . . . . . . . 2 . 1 . . . . 4 . . . . . . . . . 2 2 3 Low Security (%) 70 | 100 100 100 9 97 . 100 50 100 100 100 . . . . . . 100 85 . . . . . . . . . 100 . . . . 26 . . Level 1 13 | . . . 50 2 . . 49 . . . . . . . . . . 14 . . . . . . . . . . . . . . 30 65 41 Level 2 11 | . . . 40 . . . . . . . . . . . . 100 . . . . . . . . . . . . . . . . 42 34 47 Level 3 3 | . . . . . . . . . . . . . . . . . . . . . . . 68 . . . . . . . . . . . 10 Level 4 1 | . . . . . . . . . . . . . . . . . . . . . . . 31 . . . . . . . . . . . . Level 5 . | . . . . . . . . . . . . . . . . . . . . . . . . . . . . . . . . . . . . High Security . | . . . . . . . . . . . . . . . . . . . . . . . . . . . . . . . . . . . . Max Security . | . . . . . . . . . . . . . . . . . . . . . . . . . . . . . . . . . . . . Squads Dispatched 27 | . 2 . 3 . . . 1 3 . 4 . . . . . 2 . 2 . . . . . . . . . . . . . . 4 2 4 Investigation 5 | . . . 1 . . . . . . . . . . . . . . 1 . . . . . . . . . . . . . . 1 1 1 Extermination 9 | . . . . . . . . 3 . 3 . . . . . 1 . 1 . . . . . . . . . . . . . . 1 . . Reinforcement 11 | . 2 . 2 . . . 1 . . . . . . . . 1 . . . . . . . . . . . . . . . . 1 1 3 Assault 1 | . . . . . . . . . . . . . . . . . . . . . . . . . . . . . . . . . 1 . . Garrison 1 | . . . . . . . . . . 1 . . . . . . . . . . . . . . . . . . . . . . . . . Intercept . | . . . . . . . . . . . . . . . . . . . . . . . . . . . . . . . . . . . . Searches Triggered 2 | . . . . . . . . . . . . . . . . . . . . . . . 1 . . . . . . . . . . 1 . Data Miner Redirects 1 | . . . . . . . . . . . . . . . . . . . . . . . . . . . . . . . . . . 1 . Construction Impeded . | . . . . . . . . . . . . . . . . . . . . . . . . . . . . . . . . . . . . Haulers Reinforced 2 | . . . . . . . . . . . . . . . . 1 . . . . . . . . . . . . . . . . . . 1 Active Scanning Responses . | . . . . . . . . . . . . . . . . . . . . . . . . . . . . . . . . . . . . Cargo Convoy Interrupts . | . . . . . . . . . . . . . . . . . . . . . . . . . . . . . . . . . . . . Stealth | -11 -10 -10 -9 -9 -9 -8 -8 -7 -7 -7 -7 -7 -7 -7 -6 -6 -6 -6 -6 -6 -6 -5 -5 -5 -5 -5 -4 -4 -4 -4 -4 -3 -3 -3 -2 --------- Run | Yrd Mat Min Mat Min Exi Min Mat Fac Was Fac Low Low Zio Dee Pro Fac Was Fac Low Low Dat Pro Fac Upp Upp Zhi Pro Fac Upp Upp War Pro Res Tes Res Distress Signals 28 | . 2 . 2 . . . 4 1 . . . . . . 1 1 . 2 . . . 1 . . . . . . . . 2 . 1 4 7 Communications Jammed 6 | . . . . . . . . . . . . . . . . . . . . . . . . . . . . . . . . . 6 . . Distress Signals 5 | . . . . . . . . . . . . . . . . . . . . . . . . . . . . . . . . . 5 . . Times Spotted 398 | . 19 4 42 3 . 1 22 11 6 17 . 8 . 12 12 5 6 23 7 . . 18 24 1 14 . 7 . 3 3 20 4 40 21 45 Peak Tracking Total 16 | . 5 2 7 3 . 3 5 3 3 3 . 3 . 4 5 3 5 13 3 . . 6 7 1 5 . 3 . 4 2 13 4 10 16 16 Tactical Retreats 44 | . 2 . 3 . . 1 1 . . 1 . 1 . . . . . 4 1 . . 1 3 . 3 . 1 . 1 1 . 1 6 4 9 Traps | -11 -10 -10 -9 -9 -9 -8 -8 -7 -7 -7 -7 -7 -7 -7 -6 -6 -6 -6 -6 -6 -6 -5 -5 -5 -5 -5 -4 -4 -4 -4 -4 -3 -3 -3 -2 ------- Run | Yrd Mat Min Mat Min Exi Min Mat Fac Was Fac Low Low Zio Dee Pro Fac Was Fac Low Low Dat Pro Fac Upp Upp Zhi Pro Fac Upp Upp War Pro Res Tes Res Traps Triggered 6 | . . . . . . . . 1 . 2 . . . . . 1 . 1 . . . . 1 . . . . . . . . . . . . Indirectly . | . . . . . . . . . . . . . . . . . . . . . . . . . . . . . . . . . . . . Trap Hack Attempts . | . . . . . . . . . . . . . . . . . . . . . . . . . . . . . . . . . . . . Triggered . | . . . . . . . . . . . . . . . . . . . . . . . . . . . . . . . . . . . . Disarmed . | . . . . . . . . . . . . . . . . . . . . . . . . . . . . . . . . . . . . Reprogrammed . | . . . . . . . . . . . . . . . . . . . . . . . . . . . . . . . . . . . . Reused . | . . . . . . . . . . . . . . . . . . . . . . . . . . . . . . . . . . . . Traps Extracted . | . . . . . . . . . . . . . . . . . . . . . . . . . . . . . . . . . . . . Installed 2 | . . . . . . . . . . . . . . . . . . . . . . . . 2 . . . . . . . . . . . Triggered 7 | . . . . . . . . . . . . . . . . . . . . . . 1 . . . . . . . . 6 . . . . Machines | -11 -10 -10 -9 -9 -9 -8 -8 -7 -7 -7 -7 -7 -7 -7 -6 -6 -6 -6 -6 -6 -6 -5 -5 -5 -5 -5 -4 -4 -4 -4 -4 -3 -3 -3 -2 ---------- Run | Yrd Mat Min Mat Min Exi Min Mat Fac Was Fac Low Low Zio Dee Pro Fac Was Fac Low Low Dat Pro Fac Upp Upp Zhi Pro Fac Upp Upp War Pro Res Tes Res Machines Disabled 11 | . 1 . . . . . . . . . . 1 3 2 1 1 . . . . . . . . . . . . . . . . . 2 . Max in Single Turn 1 | . 1 . . . . . . . . . . 1 1 1 1 1 . . . . . . . . . . . . . . . . . 1 . Garrison Access 1 | . . . . . . . . . . . . . . . . . . . . . . . 1 . . . . . . . . . . . . Machines Repaired . | . . . . . . . . . . . . . . . . . . . . . . . . . . . . . . . . . . . . Machines Dismantled 3 | . . . . . . . . . . . . . 3 . . . . . . . . . . . . . . . . . . . . . . Machines Sabotaged . | . . . . . . . . . . . . . . . . . . . . . . . . . . . . . . . . . . . . Overloaded Fab Kills . | . . . . . . . . . . . . . . . . . . . . . . . . . . . . . . . . . . . . Hacking | -11 -10 -10 -9 -9 -9 -8 -8 -7 -7 -7 -7 -7 -7 -7 -6 -6 -6 -6 -6 -6 -6 -5 -5 -5 -5 -5 -4 -4 -4 -4 -4 -3 -3 -3 -2 --------- Run | Yrd Mat Min Mat Min Exi Min Mat Fac Was Fac Low Low Zio Dee Pro Fac Was Fac Low Low Dat Pro Fac Upp Upp Zhi Pro Fac Upp Upp War Pro Res Tes Res Machines Accessed 82 | . 8 . 7 . 1 . 1 3 . 10 1 . . . . . . 7 2 1 4 . 6 1 1 5 . 1 . 2 6 . 4 9 2 Terminals 40 | . 5 . 5 . . . 1 2 . 4 . . . . . . . 4 . . . . 4 . . . . 1 . 1 . . 2 9 2 Fabricators 1 | . . . . . . . . . . . . . . . . . . . . . . . . . . . . . . . . . 1 . . Repair Stations 4 | . 1 . 1 . . . . . . 2 . . . . . . . . . . . . . . . . . . . . . . . . . Recycling Units 7 | . 2 . 1 . . . . 1 . 1 . . . . . . . 2 . . . . . . . . . . . . . . . . . Scanalyzers . | . . . . . . . . . . . . . . . . . . . . . . . . . . . . . . . . . . . . Garrison Access 7 | . . . . . . . . . . 3 . . . . . . . 1 . . . . 2 . . . . . . . . . 1 . . Total Hacks 201 | . 20 . 19 . 1 . 6 6 . 16 1 . . . . . . 12 7 1 32 . 7 1 1 18 . 9 . 2 13 . 8 17 4 Successful 127 | . 11 . 9 . 1 . 3 2 . 3 1 . . . . . . 3 7 1 32 . 4 1 1 18 . 5 . 2 13 . 3 7 . Failed 74 | . 9 . 10 . . . 3 4 . 13 . . . . . . . 9 . . . . 3 . . . . 4 . . . . 5 10 4 Catastrophic 21 | . 1 . 1 . . . . 1 . 8 . . . . . . . 2 . . . . 2 . . . . 1 . . . . . 3 2 Database Lockouts . | . . . . . . . . . . . . . . . . . . . . . . . . . . . . . . . . . . . . Manual 69 | . 11 . 10 . . . 3 6 . 7 . . . . . . . 12 . . . . . . . . . 7 . . 1 . 4 7 1 Terminals 93 | . 14 . 14 . . . 6 5 . 7 . . . . . . . 9 . . . . 5 . . . . 9 . 1 . . 2 17 4 Fabricators 4 | . . . . . . . . . . . . . . . . . . . . . . . . . . . . . . . . . 4 . . Repair Stations 8 | . 2 . 3 . . . . . . 3 . . . . . . . . . . . . . . . . . . . . . . . . . Recycling Units 10 | . 4 . 2 . . . . 1 . 1 . . . . . . . 2 . . . . . . . . . . . . . . . . . Scanalyzers . | . . . . . . . . . . . . . . . . . . . . . . . . . . . . . . . . . . . . Garrison Access 10 | . . . . . . . . . . 5 . . . . . . . 1 . . . . 2 . . . . . . . . . 2 . . Terminal Hacks 100 | . 5 . 3 . 1 . 1 . . 1 1 . . . . . . 1 7 1 32 . 3 1 1 18 . 4 . 2 13 . 1 4 . Record 32 | . . . . . 1 . . . . . . . . . . . . . 6 . 11 . . . . 6 . . . 1 7 . . . . Part Schematic 16 | . . . . . . . . . . . . . . . . . . . . . 12 . . . . 4 . . . . . . . . . Robot Schematic 6 | . . . . . . . . . . . . . . . . . . . . . 6 . . . . . . . . . . . . . . Robot Analysis 4 | . . . . . . . . . . . . . . . . . . . . . . . . . . 4 . . . . . . . . . Prototype ID Bank 13 | . . . 2 . . . . . . . . . . . . . . . . . 3 . . . . 4 . . . . 4 . . . . Open Door 9 | . . . . . . . . . . . 1 . . . . . . . 1 1 . . . 1 1 . . . . 1 2 . . 1 . Level Access Points 2 | . 1 . . . . . . . . . . . . . . . . . . . . . . . . . . . . . . . 1 . . Branch Access Points 5 | . 1 . . . . . . . . 1 . . . . . . . 1 . . . . 1 . . . . 1 . . . . . . . Terminal Index 1 | . . . . . . . . . . . . . . . . . . . . . . . . . . . . . . . . . . 1 . Alert Level 2 | . 1 . . . . . . . . . . . . . . . . . . . . . . . . . . 1 . . . . . . . Unreport Threat 1 | . . . . . . . . . . . . . . . . . . . . . . . . . . . . . . . . . . 1 . Locate Traps 2 | . . . . . . . . . . . . . . . . . . . . . . . 1 . . . . . . . . . . 1 . Surveillance Status 1 | . . . . . . . . . . . . . . . . . . . . . . . . . . . . 1 . . . . . . . Patrol Status 1 | . . . . . . . . . . . . . . . . . . . . . . . . . . . . 1 . . . . . . . Hauler Manifests 3 | . 1 . 1 . . . 1 . . . . . . . . . . . . . . . . . . . . . . . . . . . . Registered Components 1 | . . . . . . . . . . . . . . . . . . . . . . . 1 . . . . . . . . . . . . Zone Layout 1 | . 1 . . . . . . . . . . . . . . . . . . . . . . . . . . . . . . . . . . Fabricator Hacks 1 | . . . . . . . . . . . . . . . . . . . . . . . . . . . . . . . . . 1 . . Load Schematic 1 | . . . . . . . . . . . . . . . . . . . . . . . . . . . . . . . . . 1 . . Repair Station Hacks 4 | . 2 . 2 . . . . . . . . . . . . . . . . . . . . . . . . . . . . . . . . Scan Component 2 | . 1 . 1 . . . . . . . . . . . . . . . . . . . . . . . . . . . . . . . . Repair 2 | . 1 . 1 . . . . . . . . . . . . . . . . . . . . . . . . . . . . . . . . Recycling Unit Hacks . | . . . . . . . . . . . . . . . . . . . . . . . . . . . . . . . . . . . . Scanalyzer . | . . . . . . . . . . . . . . . . . . . . . . . . . . . . . . . . . . . . Garrison Access Hacks 1 | . . . . . . . . . . . . . . . . . . . . . . . 1 . . . . . . . . . . . . Seal Access 1 | . . . . . . . . . . . . . . . . . . . . . . . 1 . . . . . . . . . . . . Unauthorized Hacks 21 | . 4 . 4 . . . 2 2 . 2 . . . . . . . 2 . . . . . . . . . 1 . . . . 1 3 . Terminals 16 | . 2 . 2 . . . 2 2 . 2 . . . . . . . 2 . . . . . . . . . 1 . . . . . 3 . Botnet 14 | . 2 . 2 . . . 1 2 . 2 . . . . . . . 2 . . . . . . . . . 1 . . . . . 2 . Disrupt 1 | . . . . . . . . . . . . . . . . . . . . . . . . . . . . . . . . . . 1 . Operators 1 | . . . . . . . 1 . . . . . . . . . . . . . . . . . . . . . . . . . . . . Fabricators 1 | . . . . . . . . . . . . . . . . . . . . . . . . . . . . . . . . . 1 . . Recompile 1 | . . . . . . . . . . . . . . . . . . . . . . . . . . . . . . . . . 1 . . Repair Stations . | . . . . . . . . . . . . . . . . . . . . . . . . . . . . . . . . . . . . Recycling Units 4 | . 2 . 2 . . . . . . . . . . . . . . . . . . . . . . . . . . . . . . . . Reject 2 | . 1 . 1 . . . . . . . . . . . . . . . . . . . . . . . . . . . . . . . . Mask 2 | . 1 . 1 . . . . . . . . . . . . . . . . . . . . . . . . . . . . . . . . Scanalyzers . | . . . . . . . . . . . . . . . . . . . . . . . . . . . . . . . . . . . . Garrison Access . | . . . . . . . . . . . . . . . . . . . . . . . . . . . . . . . . . . . . Data Cores Recovered 1 | . . . . . . . . . . . . . . . . . . . . . . . . . . . . . . . . . . 1 . Used 1 | . . . . . . . . . . . . . . . . . . . . . . . . . . . . . . . . . . 1 . Hacking Detections 53 | . 8 . 6 . . . 1 3 . 9 . . . . . . . 7 . . . . 4 . . . . 1 . . . . 4 8 2 Full Trace Events 3 | . . . 1 . . . . . . . . . . . . . . . . . . . . . . . . . . . . . . 1 1 Feedback Events . | . . . . . . . . . . . . . . . . . . . . . . . . . . . . . . . . . . . . Feedback Blocked . | . . . . . . . . . . . . . . . . . . . . . . . . . . . . . . . . . . . . Robot Schematics Acquired 6 | . . . . . . . . . . . . . . . . . . . . . 6 . . . . . . . . . . . . . . Robots Built . | . . . . . . . . . . . . . . . . . . . . . . . . . . . . . . . . . . . . Authchips . | . . . . . . . . . . . . . . . . . . . . . . . . . . . . . . . . . . . . Time . | . . . . . . . . . . . . . . . . . . . . . . . . . . . . . . . . . . . . Total Robot Build Rating . | . . . . . . . . . . . . . . . . . . . . . . . . . . . . . . . . . . . . Part Schematics Acquired 16 | . . . . . . . . . . . . . . . . . . . . . 12 . . . . 4 . . . . . . . . . Parts Built . | . . . . . . . . . . . . . . . . . . . . . . . . . . . . . . . . . . . . Authchips . | . . . . . . . . . . . . . . . . . . . . . . . . . . . . . . . . . . . . Time . | . . . . . . . . . . . . . . . . . . . . . . . . . . . . . . . . . . . . Total Part Build Rating . | . . . . . . . . . . . . . . . . . . . . . . . . . . . . . . . . . . . . Parts Repaired 2 | . 1 . 1 . . . . . . . . . . . . . . . . . . . . . . . . . . . . . . . . Time 51 | . 26 . 25 . . . . . . . . . . . . . . . . . . . . . . . . . . . . . . . . Parts Recycled . | . . . . . . . . . . . . . . . . . . . . . . . . . . . . . . . . . . . . Recycled Matter . | . . . . . . . . . . . . . . . . . . . . . . . . . . . . . . . . . . . . Retrieved Matter . | . . . . . . . . . . . . . . . . . . . . . . . . . . . . . . . . . . . . Retrieved Components . | . . . . . . . . . . . . . . . . . . . . . . . . . . . . . . . . . . . . Parts Scanalyzed . | . . . . . . . . . . . . . . . . . . . . . . . . . . . . . . . . . . . . Part Schematics Acquired . | . . . . . . . . . . . . . . . . . . . . . . . . . . . . . . . . . . . . Parts Damaged . | . . . . . . . . . . . . . . . . . . . . . . . . . . . . . . . . . . . . Bothacking | -11 -10 -10 -9 -9 -9 -8 -8 -7 -7 -7 -7 -7 -7 -7 -6 -6 -6 -6 -6 -6 -6 -5 -5 -5 -5 -5 -4 -4 -4 -4 -4 -3 -3 -3 -2 ------------ Run | Yrd Mat Min Mat Min Exi Min Mat Fac Was Fac Low Low Zio Dee Pro Fac Was Fac Low Low Dat Pro Fac Upp Upp Zhi Pro Fac Upp Upp War Pro Res Tes Res Used RIF Installer . | . . . . . . . . . . . . . . . . . . . . . . . . . . . . . . . . . . . . Robots Hacked . | . . . . . . . . . . . . . . . . . . . . . . . . . . . . . . . . . . . . Non-combat . | . . . . . . . . . . . . . . . . . . . . . . . . . . . . . . . . . . . . Combat . | . . . . . . . . . . . . . . . . . . . . . . . . . . . . . . . . . . . . Robot Hacks Applied . | . . . . . . . . . . . . . . . . . . . . . . . . . . . . . . . . . . . . Relay Couplers Released 2 | . . . . . . . . . . . . . . . . . . . . . . . 2 . . . . . . . . . . . . Machine Destruction 2 | . . . . . . . . . . . . . . . . . . . . . . . 2 . . . . . . . . . . . . Fabnet Peak Effective % . | . . . . . . . . . . . . . . . . . . . . . . . . . . . . . . . . . . . . Robots Rewired 1 | . . . . . . . . . . . . . . . 1 . . . . . . . . . . . . . . . . . . . . Allies Hacked . | . . . . . . . . . . . . . . . . . . . . . . . . . . . . . . . . . . . . Hacks Repelled . | . . . . . . . . . . . . . . . . . . . . . . . . . . . . . . . . . . . . Allies | -11 -10 -10 -9 -9 -9 -8 -8 -7 -7 -7 -7 -7 -7 -7 -6 -6 -6 -6 -6 -6 -6 -5 -5 -5 -5 -5 -4 -4 -4 -4 -4 -3 -3 -3 -2 -------- Run | Yrd Mat Min Mat Min Exi Min Mat Fac Was Fac Low Low Zio Dee Pro Fac Was Fac Low Low Dat Pro Fac Upp Upp Zhi Pro Fac Upp Upp War Pro Res Tes Res Total Allies 16 | . . . . 5 . . . . 1 . . . 8 . 1 . . . . . . 1 . . . . . . . . . . . . . Largest Group 8 | . . . . 4 4 2 . . 1 . . . 8 8 1 1 . . . . . 1 . . . . . . . . . . . . . Highest-Rated Group 219 | . . . . 73 73 32 . . 31 . . . 219 219 32 32 . . . . . 96 . . . . . . . . . . . . . Highest-Rated Ally 96 | . . . . 31 31 16 . . 31 . . . 39 39 32 32 . . . . . 96 . . . . . . . . . . . . . Total Orders . | . . . . . . . . . . . . . . . . . . . . . . . . . . . . . . . . . . . . Ally Attacks 123 | . . . . 9 . 15 . . 14 . . . . 53 3 7 . . . . . 22 . . . . . . . . . . . . . Total Damage 1703 | . . . . 75 . 136 . . 233 . . . . 509 28 247 . . . . . 475 . . . . . . . . . . . . . Kills 12 | . . . . 1 . 2 . . . . . . . 4 1 2 . . . . . 2 . . . . . . . . . . . . . Allies Corrupted 1 | . . . . . . . . . . . . . . . . . . . . . . 1 . . . . . . . . . . . . . Allies Melted 3 | . . . . . . . . . . . . . . . . . . . . . . . . . . . . . . . 1 . . . 2 Intel | -11 -10 -10 -9 -9 -9 -8 -8 -7 -7 -7 -7 -7 -7 -7 -6 -6 -6 -6 -6 -6 -6 -5 -5 -5 -5 -5 -4 -4 -4 -4 -4 -3 -3 -3 -2 ------- Run | Yrd Mat Min Mat Min Exi Min Mat Fac Was Fac Low Low Zio Dee Pro Fac Was Fac Low Low Dat Pro Fac Upp Upp Zhi Pro Fac Upp Upp War Pro Res Tes Res Robot Analysis Total 4 | . . . . . . . . . . . . . . . . . . . . . . . . . . 4 . . . . . . . . . Derelict Logs Recovered 13 | . . 1 . 1 . . . . . . . 1 1 . 1 . . . . . . . . 2 1 . 2 . 1 2 . . . . . Drone Launches . | . . . . . . . . . . . . . . . . . . . . . . . . . . . . . . . . . . . . Drone Recoveries . | . . . . . . . . . . . . . . . . . . . . . . . . . . . . . . . . . . . . Exploration | -11 -10 -10 -9 -9 -9 -8 -8 -7 -7 -7 -7 -7 -7 -7 -6 -6 -6 -6 -6 -6 -6 -5 -5 -5 -5 -5 -4 -4 -4 -4 -4 -3 -3 -3 -2 ------------- Run | Yrd Mat Min Mat Min Exi Min Mat Fac Was Fac Low Low Zio Dee Pro Fac Was Fac Low Low Dat Pro Fac Upp Upp Zhi Pro Fac Upp Upp War Pro Res Tes Res Turns Passed 23591 | 26 1369 777 1417 944 250 688 742 1286 188 2245 382 985 1241 2030 753 339 343 607 823 334 107 475 557 539 302 107 420 156 236 878 579 164 614 312 376 Spaces Moved 17077 | 13 711 416 597 554 156 396 317 660 89 1221 246 584 727 913 346 132 157 390 657 260 83 284 710 763 412 153 490 251 382 783 861 314 723 470 856 Core 292 | . . . . . . . . . . . . . . . . . . 111 41 . . . . . . . . . . . . . 62 2 76 Treads 7051 | . 469 416 597 554 156 396 317 660 89 1221 246 584 727 619 . . . . . . . . . . . . . . . . . . . . . Legs 2630 | 13 242 . . . . . . . . . . . . 294 346 132 157 193 616 260 83 284 10 . . . . . . . . . . . . Wheels 86 | . . . . . . . . . . . . . . . . . . 86 . . . . . . . . . . . . . . . . . Hover 5649 | . . . . . . . . . . . . . . . . . . . . . . . 700 763 412 153 490 251 382 783 861 314 540 . . Flight 1369 | . . . . . . . . . . . . . . . . . . . . . . . . . . . . . . . . . 121 468 780 Fastest Speed 30 | 120 120 160 160 160 160 160 160 160 160 155 155 155 155 136 136 189 180 50 50 120 122 122 56 56 56 56 56 56 56 56 45 45 40 35 30 Average Speed 109 | 120 156 160 161 160 160 160 160 160 164 155 155 155 155 153 136 189 185 129 115 121 122 122 57 56 56 56 56 56 56 56 49 45 45 48 35 Slowest Speed 320 | 120 320 160 240 160 160 160 160 160 240 160 155 155 155 232 136 189 189 180 120 190 122 122 210 56 56 56 56 56 56 56 110 45 131 200 50 Overloaded Moves . | . . . . . . . . . . . . . . . . . . . . . . . . . . . . . . . . . . . . Propulsion Burnouts . | . . . . . . . . . . . . . . . . . . . . . . . . . . . . . . . . . . . . Robots Hopped 16 | . . . . . . . . . . . . . . . . . . . . . . . . . . . . . . . . . . 6 10 Cave-ins Triggered . | . . . . . . . . . . . . . . . . . . . . . . . . . . . . . . . . . . . . Teleports 1 | . . . . . . . . . . . . . . . . . . . . . . . . . . . . . . . . . . 1 . Exploration Rate (%) 54 | 2 83 90 58 95 50 89 34 22 69 37 50 64 79 65 65 5 66 15 62 36 68 46 27 86 56 60 63 4 62 73 95 48 23 79 27 Regions Visited 35 Branch Regions 22 Pre-discovered Areas 9 | . . 1 . . 1 . . . . . . . 1 . . . . . . . 1 . . 1 . 3 . . . 1 . . . . . Known Exits Taken 12 | . 1 1 . . . . 1 . . 1 1 1 . . 1 . . 1 . . . . 1 . . . . 1 1 . . . . 1 . Unknown Exits Taken 19 | 1 . . 1 1 1 1 . . . . . . 1 1 . . . . 1 1 1 1 . 1 1 1 1 . . 1 1 1 1 . . Scrap Searched 26 | . . 1 . 1 . 2 . . . . 2 2 1 . . . . . 1 3 . 2 . 3 2 . . . 2 3 . 1 . . . Spaces Dug 134 | . . . . . . . . . . 1 . . . 1 . 1 . . . 1 . . 5 3 3 . 5 2 . 30 . . 12 65 5 Terrain Destroyed 544 | . 17 9 . . . . 10 . 204 1 . 11 . 89 17 4 4 3 . 1 . 14 5 3 3 . 5 2 . 30 . . 12 95 5 Melee 72 | . . . . . . . . . . 1 . . . 1 . . . . . . . . 5 3 3 . 5 2 . 30 . . 12 5 5 Projectile 44 | . . . . . . . 1 . . . . . . . 17 4 4 3 . 1 . 14 . . . . . . . . . . . . . AOE 428 | . 17 9 . . . . 9 . 204 . . 11 . 88 . . . . . . . . . . . . . . . . . . . 90 . Terrain Rammed . | . . . . . . . . . . . . . . . . . . . . . . . . . . . . . . . . . . . . Walls Destroyed . | . . . . . . . . . . . . . . . . . . . . . . . . . . . . . . . . . . . . Machines Disabled . | . . . . . . . . . . . . . . . . . . . . . . . . . . . . . . . . . . . . Actions | -11 -10 -10 -9 -9 -9 -8 -8 -7 -7 -7 -7 -7 -7 -7 -6 -6 -6 -6 -6 -6 -6 -5 -5 -5 -5 -5 -4 -4 -4 -4 -4 -3 -3 -3 -2 --------- Run | Yrd Mat Min Mat Min Exi Min Mat Fac Was Fac Low Low Zio Dee Pro Fac Was Fac Low Low Dat Pro Fac Upp Upp Zhi Pro Fac Upp Upp War Pro Res Tes Res Total 20962 | 17 901 502 934 598 157 450 485 853 103 1468 247 630 787 1503 595 207 175 463 705 275 88 357 822 856 461 175 602 261 404 1184 1009 330 939 526 893 Wait 2534 | . 115 55 203 35 . 45 84 131 2 135 1 25 . 471 219 49 1 18 27 . . 48 13 79 29 . 87 2 18 362 126 10 118 18 8 Move 17015 | 12 710 415 596 553 155 395 316 660 88 1220 245 583 726 912 345 132 156 389 656 259 82 283 709 762 411 152 489 250 381 782 860 313 722 459 837 Hop 13 | . . . . . . . . . . . . . . . . . . . . . . . . . . . . . . . . . . 4 9 Pick Up 123 | 1 13 4 13 1 . 3 13 9 . 7 1 2 3 12 4 . . 3 2 3 . . 7 . 5 4 1 . . 1 . . 6 3 2 Fast Attach 166 | 1 1 2 8 . . . 2 3 . 6 . . 9 14 . . 2 11 9 6 3 1 17 1 . 7 1 4 2 2 11 . 21 12 10 Attach 45 | . . 1 3 . . . 5 3 1 1 . 1 1 7 . 1 1 1 1 . . . 5 . 2 . 1 . . . . 2 3 2 3 Detach 54 | . . . . . . . . 1 . 1 . . 8 11 1 1 . 10 1 1 . . 4 1 . . . 1 2 . 1 . 3 3 4 Swap 158 | . 11 4 27 1 1 3 16 13 4 32 . 4 7 16 . 1 . . 1 1 . . 5 . . 1 1 1 . . 1 1 3 1 2 Drop 249 | . 12 6 22 1 1 3 14 13 . 24 . 1 6 31 4 12 . 4 2 3 3 . 28 . 1 11 3 1 1 2 9 . 17 9 5 Fire 363 | 3 39 15 62 7 . 1 35 20 8 40 . 14 . 28 16 11 14 15 6 1 . 25 . . . . . . . . . . . 3 . Melee 193 | . . . . . . . . . . 2 . . . 1 . . . . . . . . 34 11 13 . 19 2 . 35 1 4 46 12 13 Ram 13 | . . . . . . . . . . . . . . . . . 1 12 . . . . . . . . . . . . . . . . . Kick . | . . . . . . . . . . . . . . . . . . . . . . . . . . . . . . . . . . . . Crush . | . . . . . . . . . . . . . . . . . . . . . . . . . . . . . . . . . . . . Escape Stasis . | . . . . . . . . . . . . . . . . . . . . . . . . . . . . . . . . . . . . Rewire 7 | . . . . . . . . . . . . . . . 6 . . . . 1 . . . . . . . . . . . . . . . Trap 2 | . . . . . . . . . . . . . . . . . . . . . . . . 2 . . . . . . . . . . . Miscellaneous 27 | . . . . . . . . . . . . . 27 . . . . . . . . . . . . . . . . . . . . . . Route ------- -11/Scrapyard -10/Materials (discovered 5 exits: *Mat x3 / *Min x2) -10/Mines (discovered 2 exits: *Mat x2) -9/Materials (discovered 2 exits: *Mat / [*Min]) -9/Mines (discovered 4 exits: *Mat x2 / *Exi / *Zio) -9/Exiles -8/Mines (discovered 2 exits: *Mat x2) -8/Materials -7/Factory -7/Waste -7/Factory (discovered 4 exits: *Fac x2 / *Low x2) -7/Lower Caves -7/Lower Caves -7/Zion -7/Deep Caves -6/Proximity Caves -6/Factory -6/Waste -6/Factory (discovered 4 exits: *Low x2 / Ext x2) -6/Lower Caves -6/Lower Caves (discovered 2 exits: *Fac / *Dat) -6/Data Miner -5/Proximity Caves -5/Factory (discovered 3 exits: *Fac / *Upp x2) -5/Upper Caves -5/Upper Caves -5/Zhirov -4/Proximity Caves -4/Factory (discovered 2 exits: *Upp x2) -4/Upper Caves -4/Upper Caves (discovered 2 exits: *Res / *War) -4/Warlord -3/Proximity Caves -3/Research (discovered 4 exits: Res x3 / *Tes) -3/Testing -2/Research (discovered 1 exit: *Acc) History --------- Turn | Location | Event 1 | -11/Scrapyard | Discovered new exit (range 3) 27 | -11/Scrapyard | Entered Materials 307 | -10/Materials | Build established: Mutant 382 | -10/Materials | Discovered new exit (range 11) 580 | -10/Materials | Discovered new exit (range 10) 646 | -10/Materials | Repaired Assault Rifle 661 | -10/Materials | Discovered new exit (range 13) 915 | -10/Materials | Discovered new exit (range 15) 1231 | -10/Materials | Identified exit to Mines 1294 | -10/Materials | Identified exit to Materials 1396 | -10/Materials | Entered Mines 1409 | -10/Mines | Assembled infested the area 1453 | -10/Mines | Discovered exit to Materials (range 9) 1521 | -10/Mines | Learned Materials emergency access door positions 1610 | -10/Mines | Learned location of Storage (-8) 2003 | -10/Mines | Joined a pair of Derelicts in attacking an 0b10 outpost 2090 | -10/Mines | Discovered exit to Materials (range 15) 2173 | -10/Mines | Entered Materials 2173 | -9/Materials | Evolved 2 slots: Utility x2 2338 | -9/Materials | Destroyed 8 combat bots 2351 | -9/Materials | Build established: Scavenger-Mutant 2799 | -9/Materials | Repaired Beamcaster 3179 | -9/Materials | Build established: Mutant 3312 | -9/Materials | Discovered new exit (range 14) 3499 | -9/Materials | Discovered new exit (range 16) 3590 | -9/Materials | Entered Mines 3605 | -9/Mines | Deemed a non-threat by the Exiles lab entrance 3605 | -9/Mines | Discovered new exit (range 5) 3712 | -9/Mines | Assisted by bots powering up and referring to "LRC-V3" 3794 | -9/Mines | Found a damaged Exp. Sensor Array with a note attached 3797 | -9/Mines | Found Prototype Device 3821 | -9/Mines | Discovered new exit (range 10) 3925 | -9/Mines | Learned Materials garrison access intel 3981 | -9/Mines | Discovered new exit (range 5) 4271 | -9/Mines | A Derelict revealed a hidden shortcut to a safe place 4534 | -9/Mines | Entered Exiles 4534 | -9/Exiles | Accompanied by 4 allies 4564 | -9/Exiles | Led the pair of lost Derelicts to a safe place 4574 | -9/Exiles | Met 8R-AWN 4600 | -9/Exiles | Met EX-HEX 4669 | -9/Exiles | Met EX-DEC 4678 | -9/Exiles | Learned location of Zion (-7) 4762 | -9/Exiles | Discovered new exit (range 14) 4784 | -9/Exiles | Entered Mines 4784 | -8/Mines | Accompanied by 2 allies 4845 | -8/Mines | Discovered new exit (range 15) 5453 | -8/Mines | Discovered new exit (range 9) 5472 | -8/Mines | Entered Materials 5472 | -8/Materials | Evolved 2 slots: Propulsion x1, Utility x1 5473 | -8/Materials | Identified Exp. Sensor Array 5979 | -8/Materials | Discovered new exit (range 15) 6211 | -8/Materials | Identified exit to Factory 6214 | -8/Materials | Entered Factory 6214 | -7/Factory | Evolved 2 slots: Utility x1, Weapon x1 6351 | -7/Factory | Found Prototype Launcher 6352 | -7/Factory | Identified Rocket Array 6356 | -7/Factory | Found Faulty Rocket Array 6501 | -7/Factory | Build established: Gunner 7264 | -7/Factory | Build established: Scavenger-Gunner 7476 | -7/Factory | Discovered new exit (range 12) 7492 | -7/Factory | Identified exit to Factory 7500 | -7/Factory | Sucked down chute 7500 | -7/Factory | Entered Waste 7501 | -7/Waste | Met a frightened Derelict 7515 | -7/Waste | EMP discharged 7515 | -7/Waste | Spotted C-40 Crusher 7522 | -7/Waste | Destroyed C-40 Crusher 7568 | -7/Waste | Spotted C-40 Crusher 7570 | -7/Waste | Spotted C-40 Crusher 7571 | -7/Waste | Spotted C-40 Crusher 7571 | -7/Waste | Destroyed C-40 Crusher 7578 | -7/Waste | Spotted C-40 Crusher 7580 | -7/Waste | Destroyed C-40 Crusher 7580 | -7/Waste | Destroyed C-40 Crusher 7584 | -7/Waste | Destroyed C-40 Crusher 7596 | -7/Waste | Spotted C-40 Crusher 7610 | -7/Waste | Destroyed C-40 Crusher 7615 | -7/Waste | EMP discharged 7615 | -7/Waste | System corruption reached 10% 7664 | -7/Waste | Discovered new exit (range 16) 7686 | -7/Waste | Identified exit to Factory 7688 | -7/Waste | Entered Factory 7707 | -7/Factory | Discovered exit to Factory (range 15) 8338 | -7/Factory | Garrison activated, responded to threat 8816 | -7/Factory | Build established: Gunner 9512 | -7/Factory | Discovered exit to Factory (range 5) 9854 | -7/Factory | Identified exit to Lower Caves 9933 | -7/Factory | Entered Lower Caves 10135 | -7/Lower Caves | Encountered a Warlord checkpoint 10216 | -7/Lower Caves | Discovered new exit (range 12) 10232 | -7/Lower Caves | Identified exit to Lower Caves 10315 | -7/Lower Caves | Entered another Lower Caves area 10752 | -7/Lower Caves | Attracted the attention of an 0b10 checkpoint 11072 | -7/Lower Caves | Acquired the password to a Derelict Tinkerer's latest research 11294 | -7/Lower Caves | Discovered new exit (range 5) 11298 | -7/Lower Caves | Identified exit to Zion 11300 | -7/Lower Caves | Entered Zion 11392 | -7/Zion | System corruption cleaned by Quarantine Array 11468 | -7/Zion | Found Prototype Processor 11468 | -7/Zion | Identified Exp. Armor Integrity Analyzer 11493 | -7/Zion | Found Exp. Armor Integrity Analyzer 11496 | -7/Zion | Found Prototype Processor 11496 | -7/Zion | Identified Exp. Melee Analysis Suite 11500 | -7/Zion | Found Prototype Processor 11500 | -7/Zion | Identified Exp. Target Analyzer 11508 | -7/Zion | Found Prototype Processor 11508 | -7/Zion | Identified Exp. Targeting Computer 11690 | -7/Zion | Gained Derelict followers 11930 | -7/Zion | Found Unknown Piercing Weapon 12254 | -7/Zion | Gained Derelict followers 12293 | -7/Zion | Given the Hacking Drone Bay 12295 | -7/Zion | Found Prototype Device 12524 | -7/Zion | Discovered new exit (range 5) 12527 | -7/Zion | Saw the warning signs outside the Deep Caves entrance 12541 | -7/Zion | Entered Deep Caves 12541 | -7/Deep Caves | Accompanied by 8 allies 12629 | -7/Deep Caves | Z-Facility disabled 12646 | -7/Deep Caves | Attacked by Z-Imprinter 12652 | -7/Deep Caves | Destroyed Z-Imprinter 12688 | -7/Deep Caves | Found Prototype Protection 12688 | -7/Deep Caves | Identified Zio. Weapon Casing 12832 | -7/Deep Caves | Lost 4 allies 13113 | -7/Deep Caves | Discovered new exit (range 6) 13145 | -7/Deep Caves | Build established: Scavenger-Gunner 13212 | -7/Deep Caves | Spotted AG-18422 13249 | -7/Deep Caves | Destroyed AG-18422 13273 | -7/Deep Caves | Lost 4 parts (1n3w) 13403 | -7/Deep Caves | Found Zio. Weapon Casing 13414 | -7/Deep Caves | Found Zio. Weapon Casing 13417 | -7/Deep Caves | Found Zio. Weapon Casing 13513 | -7/Deep Caves | Build established: Mutant 13620 | -7/Deep Caves | Spotted AG-37562 13661 | -7/Deep Caves | Core integrity fell below 50% 13664 | -7/Deep Caves | Destroyed AG-37562 13669 | -7/Deep Caves | Found GOLEM Unit 13908 | -7/Deep Caves | Build established: Scavenger-Mutant 14459 | -7/Deep Caves | Build established: Golem 14466 | -7/Deep Caves | Found Prototype Protection 14571 | -7/Deep Caves | Entered Proximity Caves 14699 | -6/Proximity Caves | Spotter reported a threat 14706 | -6/Proximity Caves | Attracted the attention of an 0b10 checkpoint 14868 | -6/Proximity Caves | Spotter reported a threat 14904 | -6/Proximity Caves | Attracted the attention of an 0b10 outpost 15234 | -6/Proximity Caves | Spotter reported a threat 15324 | -6/Proximity Caves | Entered Factory 15324 | -6/Factory | Accompanied by 1 ally 15324 | -6/Factory | Evolved 2 slots: Power x1, Utility x1 15614 | -6/Factory | Spotted B-75 Beast 15663 | -6/Factory | Sucked down chute 15663 | -6/Factory | Entered Waste 15678 | -6/Waste | EMP discharged 15715 | -6/Waste | Spotted C-40 Crusher 15728 | -6/Waste | Destroyed C-40 Crusher 15741 | -6/Waste | Spotted C-40 Crusher 15756 | -6/Waste | Spotted C-40 Crusher 15763 | -6/Waste | Spotted C-40 Crusher 15778 | -6/Waste | EMP discharged 15778 | -6/Waste | System corruption reached 10% 15819 | -6/Waste | Crushed by Compactor (0 parts destroyed, 1 dropped) 15878 | -6/Waste | EMP discharged 15880 | -6/Waste | Spotted C-40 Crusher 15910 | -6/Waste | Crushed by Compactor (0 parts destroyed, 1 dropped) 15959 | -6/Waste | Spotted C-40 Crusher 15978 | -6/Waste | EMP discharged 15979 | -6/Waste | Discovered new exit (range 16) 16006 | -6/Waste | Entered Factory 16431 | -6/Factory | Lost 3 parts (1u2w) 16442 | -6/Factory | System corruption reached 30% 16486 | -6/Factory | Spotted B-75 Beast 16499 | -6/Factory | Lost 3 parts (2u1w) 16530 | -6/Factory | Core integrity fell below 50% 16573 | -6/Factory | Lost 5 parts (2n3u) 16587 | -6/Factory | Identified exit to Lower Caves 16587 | -6/Factory | Identified exit to Extension 16613 | -6/Factory | Entered Lower Caves 16652 | -6/Lower Caves | Learned Research emergency access door positions 16652 | -6/Lower Caves | Learned Armory security intel 16652 | -6/Lower Caves | Learned Research terminal intel 16652 | -6/Lower Caves | Learned Armory terminal intel 16773 | -6/Lower Caves | Build established: Mutant 17363 | -6/Lower Caves | Build established: Scavenger-Mutant 17388 | -6/Lower Caves | Discovered new exit (range 16) 17393 | -6/Lower Caves | Core integrity fell below 20% 17436 | -6/Lower Caves | Entered another Lower Caves area 17478 | -6/Lower Caves | Discovered new exit (range 8) 17729 | -6/Lower Caves | Found Alien Artifact 17729 | -6/Lower Caves | Identified Core Expander 17729 | -6/Lower Caves | Installed Core Expander, added new Propulsion slot 17765 | -6/Lower Caves | Discovered new exit (range 5) 17770 | -6/Lower Caves | Entered Data Miner 17770 | -6/Data Miner | Discovered new exit (range 6) 17798 | -6/Data Miner | Met Data Miner 17822 | -6/Data Miner | Learned location of Section 7 (-2) 17822 | -6/Data Miner | Acquired the access code to Warlord's prototype stash 17838 | -6/Data Miner | Received God Mode back door access code from Data Miner 17877 | -6/Data Miner | Entered Proximity Caves 17879 | -5/Proximity Caves | Spotter reported a threat 17880 | -5/Proximity Caves | Spotter reported a threat 17929 | -5/Proximity Caves | Escorted by Enhanced Grunt 17963 | -5/Proximity Caves | Spotter reported a threat 18027 | -5/Proximity Caves | Spotter reported a threat 18203 | -5/Proximity Caves | Spotter reported a threat 18293 | -5/Proximity Caves | Spotter reported a threat 18346 | -5/Proximity Caves | Spotter reported a threat 18349 | -5/Proximity Caves | Discovered new exit (range 3) 18352 | -5/Proximity Caves | Entered Factory 18352 | -5/Factory | Evolved 2 slots: Utility x2 18353 | -5/Factory | Identified exit to Upper Caves 18652 | -5/Factory | Search patrols dispatched 18858 | -5/Factory | Discovered new exit (range 8) 18909 | -5/Factory | Entered Upper Caves 19038 | -5/Upper Caves | Learned Factory terminal intel 19190 | -5/Upper Caves | Build established: Gladiator 19442 | -5/Upper Caves | Discovered new exit (range 12) 19448 | -5/Upper Caves | Entered another Upper Caves area 19637 | -5/Upper Caves | Learned Factory terminal intel 19678 | -5/Upper Caves | Encountered a Warlord checkpoint 19722 | -5/Upper Caves | Lost 4 allies 19747 | -5/Upper Caves | Discovered new exit (range 5) 19750 | -5/Upper Caves | Entered Zhirov 19750 | -5/Zhirov | Discovered new exit (range 3) 19761 | -5/Zhirov | Met Zhirov 19773 | -5/Zhirov | Learned location of Quarantine (-2) 19773 | -5/Zhirov | Learned location of Testing (-3) 19773 | -5/Zhirov | Learned location of Command (-1) 19776 | -5/Zhirov | Zhirov requested help retrieving the SGEMP Prototype 19786 | -5/Zhirov | Found Alien Artifact 19786 | -5/Zhirov | Identified Integrated Dissipator 19786 | -5/Zhirov | Installed Integrated Dissipator, increased core heat dissipation (+20) 19798 | -5/Zhirov | Found Alien Artifact 19857 | -5/Zhirov | Entered Proximity Caves 19930 | -4/Proximity Caves | Learned Research stockpile data 20046 | -4/Proximity Caves | Learned Research security intel 20157 | -4/Proximity Caves | Spotted B-86 Titan 20275 | -4/Proximity Caves | Discovered new exit (range 5) 20277 | -4/Proximity Caves | Entered Factory 20277 | -4/Factory | Evolved 2 slots: Utility x2 20278 | -4/Factory | Loaded intel: 24 terminal locations 20368 | -4/Factory | Identified exit to Upper Caves 20433 | -4/Factory | Entered Upper Caves 20451 | -4/Upper Caves | Identified exit to Upper Caves 20590 | -4/Upper Caves | Spotted B-86 Titan 20669 | -4/Upper Caves | Entered another Upper Caves area 20721 | -4/Upper Caves | Discovered new exit (range 10) 20779 | -4/Upper Caves | Learned Research interactive machine intel 20891 | -4/Upper Caves | Attracted the attention of an 0b10 checkpoint 21539 | -4/Upper Caves | Discovered new exit (range 13) 21547 | -4/Upper Caves | Entered Warlord 21705 | -4/Warlord | Visited the Vortex Lab 21724 | -4/Warlord | Warlord's base attacked by MAIN.C 21740 | -4/Warlord | Met Warlord 21747 | -4/Warlord | Opened Warlord's prototype stash 21758 | -4/Warlord | Found Exp. Target Analyzer 21773 | -4/Warlord | Found Prototype Reactor 21773 | -4/Warlord | Identified Vortex Chain Reactor 21997 | -4/Warlord | Warlord forces counterattacked 22026 | -4/Warlord | Spotted B-90 Cyclops 22078 | -4/Warlord | Spotted Striker 22103 | -4/Warlord | Opened side exit 22110 | -4/Warlord | Lost 11 allies 22119 | -4/Warlord | Discovered new exit (range 15) 22124 | -4/Warlord | Spotted Striker 22124 | -4/Warlord | Spotted Executioner 22126 | -4/Warlord | Entered Proximity Caves 22287 | -3/Proximity Caves | Discovered new exit (range 8) 22290 | -3/Proximity Caves | Entered Research 22290 | -3/Research | Evolved 2 slots: Utility x2 22294 | -3/Research | Loaded intel: 45 interactive machine locations 22295 | -3/Research | Loaded intel: 23 terminal locations 22353 | -3/Research | Found Prototype Device 22353 | -3/Research | Identified Exp. Thermal Shield 22611 | -3/Research | Identified exit to Research 22756 | -3/Research | Lost 7 parts (1p5u1w) 22782 | -3/Research | Destroyed 7 combat bots 22790 | -3/Research | First assault squad dispatched 22829 | -3/Research | Lost 6 parts (3n3u) 22894 | -3/Research | Discovered new exit (range 15) 22904 | -3/Research | Entered Testing 22983 | -3/Testing | Found Fusion Bomb Launcher 23017 | -3/Testing | Spotted Striker 23017 | -3/Testing | Spotted Striker 23020 | -3/Testing | Identified Transdimensional Reconstructor 23020 | -3/Testing | Warped through subspace 23145 | -3/Testing | Core integrity fell below 50% 23154 | -3/Testing | Search patrols dispatched 23161 | -3/Testing | Found Prototype Device 23161 | -3/Testing | Identified Exp. Hardlight Generator 23176 | -3/Testing | Incoming investigation squad redirected 23186 | -3/Testing | Found Prototype Device 23186 | -3/Testing | Identified Adv. Kinecellerator 23200 | -3/Testing | Discovered exit to Research (range 16) 23216 | -3/Testing | Entered Research 23216 | -2/Research | Warlord forces began assault on 0b10 23216 | -2/Research | Evolved 2 slots: Utility x2 23326 | -2/Research | Research machine network offline 23389 | -2/Research | Found Exp. Target Analyzer 23467 | -2/Research | Discovered new exit (range 10) 23470 | -2/Research | Identified exit to Access 23505 | -2/Research | Spotted Striker 23506 | -2/Research | Spotted Striker 23523 | -2/Research | Core integrity fell below 50% 23554 | -2/Research | Lost 11 parts (1p4n6u) 23580 | -2/Research | Core integrity fell below 20% 23592 | -2/Research | Destroyed by D-83 Annihilator with Micro-nuke Launcher Last Messages --------------- 23523_ Adv. Corruption Screen destroyed. 23523_ Exp. Target Analyzer destroyed. 23523_ Armor Integrity Analyzer destroyed. 23523_ Slug penetrates P-80 Master. 23524_ The unstable cave ceiling collapses. 23540_ Slug penetrates Wall. 23558_ Acquired Prototype Flight Unit. 23558_ Identified Imp. Diametric Drive. 23563_ Adv. Sensor Array destroyed. 23566_ ANNOUNCEMENT: Warlord escort dispatched to central route. See that they get there. 23572_ ANNOUNCEMENT: Who is that? Where did the real bodyguards go? 23576_ ANNOUNCEMENT: Warlord pulling back, all units provide covering fire where possible. 23577_ ANNOUNCEMENT: Whatever, let's roll with it, he looks buff. 23577_ Slug penetrates Wall. 23581_ Penetrated by Slug. 23582_ W-44 Eye sends out distress signal. 23583_ Slug penetrates Wall. 23583_ Penetrated by Slug. Map ----- +----------------------------------------------------+ | ?????????????????????????????????????????????????? | | ?????????????????????????????????????????????????? | | ?????????????????????????????????????????????????? | | ?????????????????????????????????????????????????? | | ?????????????????????????????????????????????????? | | ?????????????????????????????????????????????????? | | ?????????????????????????????????????????????????? | | ?????????????????????????????????????????????????? | | ?????????????????????????????????????????????????? | | ?????????????????????????????????????????????????? | | ????????????????????????? ?????????????????????? | | ????????????????????????? #???????????????????? | | ????????????????????????? #???????????????????? | | ????????????????????????# #???????????????????? | | ????????????????????????# #???????????????????? | | ????????????????????????# #???????????????????? | | ????????????????????????# #???????????????????? | | ??????????????????????### d#???????????????????? | | ?????????????????????? +???????????????????? | | ??????????????????????? #???????????????????? | | ??????????????????????? #???????????????????? | | ???????????????????????? #???????????????????? | | ???????????????####+????# #???????????????????? | | ???????????????# ??# #???????????????????? | | ???????????????# # #???#######?????????? | | ???????????????? """ /@ #??? #?????????? | | ???????????????? ""F # #?? #?????????? | | ????????????????? "" ??# #?? #?????????? | | ???????????????#] ""????# #? #?????????? | | ???????????????? ??????# #? #?????????? | | ????????????????????????# # #?????????? | | ????????????????????????# # #?????????? | | ????????????????????????# + #?????????? | | ????????????????????????# #########???????##### | | ????????????????????????# #??#####????????# | | ????????????????????????# #? """"????????# ##/ | | ????????????????????????# #? """"" ??????# # | | ????????????????????????# # """"" #???# # | | ????????????????????????# # #???# #] | | ????????????????????????+ + #???# # | | ????????????????????????# # #???# # | | ???????????????########## # #???# ### | | ???????????????# # ##############?## ### | | ???????????????# # # #?# | | ???????????????#"" # # ] ### | | ???????????????#"" # # + | | ???????????????#"Y + " [ ### [ | | ???????????????#"" # # #?# | | ???????????????#"" # #####+########?### ## | | ???????????????# # #???# #???######?? #? | +----------------------------------------------------+ Best States ------------- Heat Dissipation 93 Energy Generation 45 Energy Capacity 1100 Matter Stores 300 Matter Capacity 300 Sight Range 16 Robot Scan Range 20 Terrain Scan Range 20 Terrain Scan Density 10 Jamming Range 14 Power Amplification 20 Additional Mass Support 9 EM Shielding 2 Corruption Block 20 Armor Coverage 600 Resistance: KI 15 Resistance: TH 15 Resistance: EX 15 Resistance: EM 15 Resistance: I 15 Resistance: S 15 Resistance: P 15 Core Shielding 30 Utility Shielding 90 Weapon Shielding 100 Melee Speed Boost 20 Phase Shifting 5 Evasion (%) 74 Targeting Accuracy 16 Melee Accuracy 41 Launcher Accuracy 20 Target Analysis 15 Core Analysis 6 Armor Integrity Analysis 50 Recoil Reduction 3 Energy Filtering 50 Particle Charging 15 Offensive Hacking 14 Defensive Hacking 10 Authchip Count 1 Item Schematics ----------------- Combat Drone Bay | -6/Data Miner | Free Lgt. Regenerative Plating | -6/Data Miner | Free Cld. Nuclear Pulse Thruster | -6/Data Miner | Free Prc. Matter Filter | -6/Data Miner | Free Kinetic Spear | -6/Data Miner | Free Imp. Gyrokinetic Inverter | -6/Data Miner | Free Adv. Thermal Generator | -6/Data Miner | Free Micro-nuke Launcher | -6/Data Miner | Free Adv. Drone Bay | -6/Data Miner | Free Field Propulsion Array | -6/Data Miner | Free Linear Accelerator | -6/Data Miner | Free Biometal Medium Treads | -6/Data Miner | Free Assault Drone Bay | -5/Zhirov | Free Exp. Heat Sink | -5/Zhirov | Free Exp. Optical Array | -5/Zhirov | Free Imp. Arc Thrower | -5/Zhirov | Free Robot Schematics ------------------ A-15 Conveyor | -6/Data Miner | Free E-15 Imp | -6/Data Miner | Free G-50 Soldier | -6/Data Miner | Free L-61 Swordsman | -6/Data Miner | Free R-10 Processor | -6/Data Miner | Free G-67 Veteran | -6/Data Miner | Free Fabricated ------------ Nothing Alien Tech Used ----------------- Core Expander Integrated Dissipator Transdimensional Reconstructor Achievements -------------- Below Great Explorer Challenges ------------ None Game ------ Seed SpacefoldTractorCloak Manual? 0 Play Time 03:29:23 Cumulative 172.7 hours Start 2024.09.02 @ 12:35:34 End 2024.09.02 @ 16:09:34 Sessions 1 Manual Loads 0 Difficulty Rogue Special Mode None Game No. 133 Rogue 133 Adventurer 0 Explorer 0 Win Type - Total 12 Types 8/0/3/1/0/0/0/0/0 Lore% 71 Gallery% 69 Achievement% 64 Wizard Run 0 Options --------- Layout 0 ASCII 0 Keyboard 1 Movement Vi Keybinds 0 Fullscreen 2 Font 24/Swanston Map View 76x50 Zoom Use 0% Tactical HUD 1 Map Filters NONE Filters NONE Steam 1 RUN: 0b2e3f2c-91c0-4902-9722-e92e275e4078